[Event "*** Titled Tuesday Blitz"]
[Site "Chess.com"]
[Date "2021.02.09"]
[Round "5"]
[White "Gabrielian_Artur"]
[Black "MITerryble"]
[Result "1-0"]
[WhiteElo "2811"]
[BlackElo "2939"]
[TimeControl "180+1"]
[EndTime "10:58:25 PST"]
[Termination "Gabrielian_Artur won on time"]

1. c4 {[%clk 0:03:00.9]} 1... e5 {[%clk 0:02:59.4]} 2. Nc3 {[%clk 0:03:00.1]}
2... Nc6 {[%clk 0:02:59.5]} 3. Nf3 {[%clk 0:02:59.7]} 3... f5 {[%clk 0:02:59.5]}
4. d3 {[%clk 0:02:59.3]} 4... d6 {[%clk 0:02:52.1]} 5. g3 {[%clk 0:02:58]} 5...
g6 {[%clk 0:02:49.5]} 6. Bg2 {[%clk 0:02:57.4]} 6... Bg7 {[%clk 0:02:49.4]} 7.
O-O {[%clk 0:02:57.5]} 7... Nf6 {[%clk 0:02:39.2]} 8. Rb1 {[%clk 0:02:57.1]}
8... O-O {[%clk 0:02:39.3]} 9. b4 {[%clk 0:02:57]} 9... h6 {[%clk 0:02:39.8]}
10. b5 {[%clk 0:02:56.6]} 10... Ne7 {[%clk 0:02:40.2]} 11. Ba3 {[%clk
0:02:52.4]} 11... g5 {[%clk 0:02:27.4]} 12. c5 {[%clk 0:02:51.2]} 12... Be6
{[%clk 0:02:24.2]} 13. cxd6 {[%clk 0:02:37.9]} 13... cxd6 {[%clk 0:02:25.1]} 14.
Nd2 {[%clk 0:02:37.9]} 14... d5 {[%clk 0:02:09]} 15. e3 {[%clk 0:02:27.4]} 15...
Re8 {[%clk 0:02:02.5]} 16. Nb3 {[%clk 0:02:17.6]} 16... b6 {[%clk 0:02:00.8]}
17. Rc1 {[%clk 0:02:04.3]} 17... Rc8 {[%clk 0:01:57.7]} 18. Bb2 {[%clk
0:02:03.9]} 18... Ng6 {[%clk 0:01:44.2]} 19. Ne2 {[%clk 0:02:01.7]} 19... Qd7
{[%clk 0:01:39.3]} 20. a4 {[%clk 0:01:58.3]} 20... f4 {[%clk 0:01:35.4]} 21. Nd2
{[%clk 0:01:40.7]} 21... Bh3 {[%clk 0:01:19.1]} 22. Rxc8 {[%clk 0:01:39.6]}
22... Rxc8 {[%clk 0:01:18.6]} 23. exf4 {[%clk 0:01:39]} 23... gxf4 {[%clk
0:01:17.3]} 24. Nf3 {[%clk 0:01:37.8]} 24... Bxg2 {[%clk 0:01:05.4]} 25. Kxg2
{[%clk 0:01:37.4]} 25... e4 {[%clk 0:01:05.4]} 26. dxe4 {[%clk 0:01:25.4]} 26...
dxe4 {[%clk 0:01:05.5]} 27. Bxf6 {[%clk 0:01:17.2]} 27... exf3+ {[%clk
0:00:58.2]} 28. Kxf3 {[%clk 0:01:18.1]} 28... Qb7+ {[%clk 0:00:50.9]} 29. Kg4
{[%clk 0:01:16.1]} 29... Bxf6 {[%clk 0:00:46.7]} 30. Nxf4 {[%clk 0:01:10.2]}
30... Nxf4 {[%clk 0:00:45.7]} 31. gxf4 {[%clk 0:01:07.4]} 31... Kh8 {[%clk
0:00:41.4]} 32. Rg1 {[%clk 0:00:52.1]} 32... Qe4 {[%clk 0:00:27.8]} 33. Rg3
{[%clk 0:00:43.5]} 33... Qe6+ {[%clk 0:00:25.4]} 34. f5 {[%clk 0:00:41.2]} 34...
Qe4+ {[%clk 0:00:25.2]} 35. Kh3 {[%clk 0:00:40.6]} 35... Qxf5+ {[%clk
0:00:25.1]} 36. Kg2 {[%clk 0:00:40.9]} 36... Rg8 {[%clk 0:00:24.4]} 37. Qd6
{[%clk 0:00:29.7]} 37... Rxg3+ {[%clk 0:00:19.2]} 38. hxg3 {[%clk 0:00:30.1]}
38... Qe4+ {[%clk 0:00:09.4]} 39. Kg1 {[%clk 0:00:29]} 39... Bd4 {[%clk
0:00:05.5]} 40. Qf8+ {[%clk 0:00:24.6]} 40... Kh7 {[%clk 0:00:04.8]} 41. Qf7+
{[%clk 0:00:25.1]} 41... Bg7 {[%clk 0:00:03.4]} 42. Qxa7 {[%clk 0:00:24.5]}
42... Qd4 {[%clk 0:00:03.2]} 43. Qb7 {[%clk 0:00:20.4]} 43... h5 {[%clk
0:00:02.9]} 44. Qf3 {[%clk 0:00:19]} 44... Qa1+ {[%clk 0:00:02.8]} 45. Kg2
{[%clk 0:00:18.7]} 45... Qe5 {[%clk 0:00:03.7]} 46. Qc6 {[%clk 0:00:18.1]} 46...
Qd4 {[%clk 0:00:03]} 47. Qf3 {[%clk 0:00:17.5]} 47... Kg6 {[%clk 0:00:03.3]} 48.
Qc6+ {[%clk 0:00:17.4]} 48... Bf6 {[%clk 0:00:03.7]} 49. Qe8+ {[%clk 0:00:15.4]}
49... Kg5 {[%clk 0:00:03.3]} 50. f4+ {[%clk 0:00:14.8]} 50... Kh6 {[%clk
0:00:03.4]} 51. Qc6 {[%clk 0:00:13.3]} 51... Kg7 {[%clk 0:00:02.7]} 52. Qc7+
{[%clk 0:00:12.8]} 52... Kg6 {[%clk 0:00:02.7]} 53. Qc6 {[%clk 0:00:12.7]} 53...
Kh6 {[%clk 0:00:03.6]} 54. a5 {[%clk 0:00:12.5]} 54... bxa5 {[%clk 0:00:02.8]}
55. b6 {[%clk 0:00:13]} 55... Qb2+ {[%clk 0:00:03]} 56. Kh3 {[%clk 0:00:13]}
56... Qa1 {[%clk 0:00:01.3]} 57. b7 {[%clk 0:00:12.2]} 57... Qf1+ {[%clk
0:00:01.1]} 58. Qg2 {[%clk 0:00:12]} 1-0

[Event "*** Titled Tuesday Blitz"]
[Site "Chess.com"]
[Date "2021.02.09"]
[Round "5"]
[White "Chesswizard_2007"]
[Black "AustrianFalcon"]
[Result "1/2-1/2"]
[WhiteElo "2675"]
[BlackElo "2451"]
[TimeControl "180+1"]
[EndTime "10:58:25 PST"]
[Termination "Game drawn by repetition"]

1. e4 {[%clk 0:02:58.4]} 1... g6 {[%clk 0:02:58.5]} 2. g3 {[%clk 0:02:51.3]}
2... d5 {[%clk 0:02:57.5]} 3. Bg2 {[%clk 0:02:52.2]} 3... dxe4 {[%clk
0:02:57.5]} 4. Bxe4 {[%clk 0:02:53.1]} 4... Nf6 {[%clk 0:02:58]} 5. Bg2 {[%clk
0:02:53]} 5... Bg7 {[%clk 0:02:58.7]} 6. Nf3 {[%clk 0:02:53.5]} 6... O-O {[%clk
0:02:59.2]} 7. O-O {[%clk 0:02:54.1]} 7... c5 {[%clk 0:02:58.2]} 8. Nc3 {[%clk
0:02:52.8]} 8... Nc6 {[%clk 0:02:58]} 9. Re1 {[%clk 0:02:52.6]} 9... Qc7 {[%clk
0:02:46]} 10. d3 {[%clk 0:02:51]} 10... e5 {[%clk 0:02:40.9]} 11. Bg5 {[%clk
0:02:49.5]} 11... Be6 {[%clk 0:02:32.5]} 12. Nd2 {[%clk 0:02:46.8]} 12... Qd7
{[%clk 0:02:25]} 13. Nde4 {[%clk 0:02:44.8]} 13... Nxe4 {[%clk 0:02:17.8]} 14.
Nxe4 {[%clk 0:02:45.7]} 14... b6 {[%clk 0:01:45.5]} 15. Nf6+ {[%clk 0:02:41.6]}
15... Bxf6 {[%clk 0:01:45.1]} 16. Bxf6 {[%clk 0:02:42.5]} 16... Bd5 {[%clk
0:01:30.8]} 17. Qd2 {[%clk 0:02:23.7]} 17... Qd6 {[%clk 0:01:23.4]} 18. Bxd5
{[%clk 0:02:20.2]} 18... Qxf6 {[%clk 0:01:23.3]} 19. Bxc6 {[%clk 0:02:19.6]}
19... Qxc6 {[%clk 0:01:24.2]} 20. Rxe5 {[%clk 0:02:20.1]} 20... Rfe8 {[%clk
0:01:24.6]} 21. Rae1 {[%clk 0:02:19.1]} 21... Rxe5 {[%clk 0:01:24.6]} 22. Rxe5
{[%clk 0:02:20]} 22... Re8 {[%clk 0:01:25]} 23. Rxe8+ {[%clk 0:02:01.8]} 23...
Qxe8 {[%clk 0:01:25.9]} 24. b3 {[%clk 0:02:01.7]} 24... Qe5 {[%clk 0:01:20.8]}
25. a4 {[%clk 0:02:00]} 25... h5 {[%clk 0:01:18.3]} 26. Qe3 {[%clk 0:01:59.2]}
26... Qc3 {[%clk 0:01:15.4]} 27. Qe2 {[%clk 0:01:59.5]} 27... Kg7 {[%clk
0:01:10.8]} 28. h4 {[%clk 0:01:59.6]} 28... a6 {[%clk 0:01:04.8]} 29. Kg2 {[%clk
0:01:57.9]} 29... b5 {[%clk 0:01:04.8]} 30. axb5 {[%clk 0:01:58.8]} 30... axb5
{[%clk 0:01:05.6]} 31. f4 {[%clk 0:01:52.1]} 31... Kf6 {[%clk 0:00:57.4]} 32.
Kf3 {[%clk 0:01:48.5]} 32... Qd4 {[%clk 0:00:45.7]} 33. Qe4 {[%clk 0:01:36.5]}
33... Qa1 {[%clk 0:00:42.3]} 34. Kf2 {[%clk 0:01:25.7]} 34... Qc3 {[%clk
0:00:33.9]} 35. Qe2 {[%clk 0:01:22.9]} 35... b4 {[%clk 0:00:33]} 36. Kf3 {[%clk
0:01:21.9]} 36... Qa1 {[%clk 0:00:32.4]} 37. Kg2 {[%clk 0:01:17.5]} 37... Kg7
{[%clk 0:00:28.3]} 38. Qe5+ {[%clk 0:01:17.3]} 38... Qxe5 {[%clk 0:00:28.2]} 39.
fxe5 {[%clk 0:01:18.2]} 39... f6 {[%clk 0:00:28.8]} 40. exf6+ {[%clk 0:01:14.2]}
40... Kxf6 {[%clk 0:00:29.7]} 41. Kf3 {[%clk 0:01:14.8]} 41... Kf5 {[%clk
0:00:25.7]} 42. g4+ {[%clk 0:01:12.2]} 42... hxg4+ {[%clk 0:00:23.1]} 43. Kg3
{[%clk 0:01:12.6]} 43... Kf6 {[%clk 0:00:12.8]} 44. Kxg4 {[%clk 0:01:13.5]}
44... Kg7 {[%clk 0:00:12.3]} 45. Kf4 {[%clk 0:01:12.1]} 45... Kh6 {[%clk
0:00:11.6]} 46. Kg4 {[%clk 0:01:10]} 46... Kg7 {[%clk 0:00:11.8]} 47. h5 {[%clk
0:00:51.1]} 47... gxh5+ {[%clk 0:00:11.3]} 48. Kxh5 {[%clk 0:00:52]} 48... Kf6
{[%clk 0:00:11.8]} 49. Kg4 {[%clk 0:00:52.9]} 49... Ke5 {[%clk 0:00:12.2]} 50.
Kf3 {[%clk 0:00:53.6]} 50... Kd4 {[%clk 0:00:12.4]} 51. Ke2 {[%clk 0:00:54.3]}
51... Kd5 {[%clk 0:00:11.8]} 52. Ke3 {[%clk 0:00:54.4]} 52... Ke5 {[%clk
0:00:11.8]} 53. Kd2 {[%clk 0:00:53.1]} 53... Kd4 {[%clk 0:00:11.3]} 54. c4
{[%clk 0:00:41.4]} 54... bxc3+ {[%clk 0:00:12.2]} 55. Kc2 {[%clk 0:00:41.6]}
55... Ke5 {[%clk 0:00:10.3]} 56. Kxc3 {[%clk 0:00:42]} 56... Kd5 {[%clk
0:00:10]} 57. Kc2 {[%clk 0:00:42.4]} 57... Ke5 {[%clk 0:00:06.7]} 58. Kd2 {[%clk
0:00:42.1]} 58... Kd4 {[%clk 0:00:06.2]} 59. Kc2 {[%clk 0:00:40.2]} 59... Ke5
{[%clk 0:00:06.4]} 60. Kc1 {[%clk 0:00:34.5]} 60... Kd5 {[%clk 0:00:05.1]} 61.
Kd1 {[%clk 0:00:34.7]} 61... Ke5 {[%clk 0:00:04.4]} 62. Ke1 {[%clk 0:00:34.6]}
62... Kd5 {[%clk 0:00:04.5]} 63. Ke2 {[%clk 0:00:34.6]} 63... Ke5 {[%clk
0:00:02.8]} 64. Kd2 {[%clk 0:00:33.7]} 64... Kd5 {[%clk 0:00:03.2]} 65. Kc3
{[%clk 0:00:33.8]} 65... Kd6 {[%clk 0:00:03.6]} 66. Kc4 {[%clk 0:00:33.5]} 66...
Kc6 {[%clk 0:00:04.2]} 67. Kc3 {[%clk 0:00:28.2]} 67... Kd5 {[%clk 0:00:04.2]}
68. Kb2 {[%clk 0:00:28.7]} 68... Kd4 {[%clk 0:00:04.5]} 69. Kc2 {[%clk
0:00:27.7]} 69... Ke5 {[%clk 0:00:05.4]} 1/2-1/2

[Event "*** Titled Tuesday Blitz"]
[Site "Chess.com"]
[Date "2021.02.09"]
[Round "5"]
[White "Alexchess1984"]
[Black "TigrVShlyape"]
[Result "1/2-1/2"]
[WhiteElo "2707"]
[BlackElo "2840"]
[TimeControl "180+1"]
[EndTime "10:58:28 PST"]
[Termination "Game drawn by repetition"]

1. e4 {[%clk 0:03:00.9]} 1... e5 {[%clk 0:02:55.7]} 2. Nf3 {[%clk 0:03:00.4]}
2... Nc6 {[%clk 0:02:51.1]} 3. Bc4 {[%clk 0:03:00.1]} 3... Nf6 {[%clk
0:02:48.3]} 4. Ng5 {[%clk 0:02:59]} 4... d5 {[%clk 0:02:42.4]} 5. exd5 {[%clk
0:02:59.1]} 5... Na5 {[%clk 0:02:42.4]} 6. Bb5+ {[%clk 0:02:58.9]} 6... Bd7
{[%clk 0:02:42.4]} 7. Qe2 {[%clk 0:02:57.8]} 7... Bd6 {[%clk 0:01:35.3]} 8. Nc3
{[%clk 0:02:47]} 8... O-O {[%clk 0:01:31.7]} 9. Bxd7 {[%clk 0:02:38]} 9... Qxd7
{[%clk 0:01:25.1]} 10. d3 {[%clk 0:02:38.2]} 10... Bb4 {[%clk 0:01:16.9]} 11.
Bd2 {[%clk 0:02:37.8]} 11... Rfe8 {[%clk 0:01:10.5]} 12. O-O {[%clk 0:02:34.5]}
12... Bxc3 {[%clk 0:00:56.4]} 13. bxc3 {[%clk 0:02:32.4]} 13... Qxd5 {[%clk
0:00:48.9]} 14. c4 {[%clk 0:02:31.5]} 14... Qc5 {[%clk 0:00:49.1]} 15. Rab1
{[%clk 0:02:30.4]} 15... Nc6 {[%clk 0:00:33.9]} 16. Rxb7 {[%clk 0:02:26.8]}
16... Nd4 {[%clk 0:00:33.5]} 17. Qd1 {[%clk 0:02:26.6]} 17... Rab8 {[%clk
0:00:30.8]} 18. Rxb8 {[%clk 0:02:20.6]} 18... Rxb8 {[%clk 0:00:30.7]} 19. Be3
{[%clk 0:02:16.4]} 19... Qa5 {[%clk 0:00:27.9]} 20. f4 {[%clk 0:01:57.2]} 20...
Nf5 {[%clk 0:00:27.2]} 21. Bd2 {[%clk 0:01:54.5]} 21... Qc5+ {[%clk 0:00:26.6]}
22. Kh1 {[%clk 0:01:54.4]} 22... Ne3 {[%clk 0:00:26.6]} 23. Bxe3 {[%clk
0:01:50.8]} 23... Qxe3 {[%clk 0:00:27.2]} 24. fxe5 {[%clk 0:01:41.9]} 24... Qxe5
{[%clk 0:00:27.3]} 25. Nf3 {[%clk 0:01:38.1]} 25... Qc3 {[%clk 0:00:27.3]} 26.
h3 {[%clk 0:01:34]} 26... Qa3 {[%clk 0:00:26.2]} 27. Nd4 {[%clk 0:01:27.3]}
27... Qxa2 {[%clk 0:00:22.7]} 28. Nf5 {[%clk 0:01:20.4]} 28... Qb2 {[%clk
0:00:22.5]} 29. Qf3 {[%clk 0:01:15.8]} 29... Re8 {[%clk 0:00:20.7]} 30. Qg3
{[%clk 0:01:14.7]} 30... g6 {[%clk 0:00:17.6]} 31. Nh6+ {[%clk 0:01:09.2]} 31...
Kg7 {[%clk 0:00:17.9]} 32. Qxc7 {[%clk 0:01:09.1]} 32... Rf8 {[%clk 0:00:10.8]}
33. Qf4 {[%clk 0:01:06.4]} 33... Nh5 {[%clk 0:00:10.7]} 34. Nf5+ {[%clk
0:01:06.4]} 34... Kh8 {[%clk 0:00:09.4]} 35. Qd6 {[%clk 0:00:55]} 35... Qb8
{[%clk 0:00:09.3]} 36. Qxb8 {[%clk 0:00:43.7]} 36... Rxb8 {[%clk 0:00:09.1]} 37.
g4 {[%clk 0:00:44.3]} 37... gxf5 {[%clk 0:00:09.3]} 38. gxh5 {[%clk 0:00:44.3]}
38... Kg7 {[%clk 0:00:09.9]} 39. Rxf5 {[%clk 0:00:44.3]} 39... Rb2 {[%clk
0:00:10.1]} 40. Kg2 {[%clk 0:00:42.1]} 40... Rxc2+ {[%clk 0:00:10.3]} 41. Kf3
{[%clk 0:00:40.3]} 41... Rh2 {[%clk 0:00:10.5]} 42. Kg3 {[%clk 0:00:30.2]} 42...
Rd2 {[%clk 0:00:10.3]} 43. Rd5 {[%clk 0:00:30.2]} 43... a5 {[%clk 0:00:10.6]}
44. c5 {[%clk 0:00:30.5]} 44... a4 {[%clk 0:00:10.4]} 45. c6 {[%clk 0:00:24.2]}
45... Rc2 {[%clk 0:00:09.8]} 46. Rd6 {[%clk 0:00:22.8]} 46... a3 {[%clk
0:00:09.4]} 47. h6+ {[%clk 0:00:23.1]} 47... Kf8 {[%clk 0:00:09.2]} 48. Rd8+
{[%clk 0:00:23]} 48... Ke7 {[%clk 0:00:09.4]} 49. Ra8 {[%clk 0:00:22.5]} 49...
Rc3 {[%clk 0:00:09.2]} 50. Ra7+ {[%clk 0:00:17.7]} 50... Ke6 {[%clk 0:00:08.2]}
51. c7 {[%clk 0:00:18.1]} 51... Rxd3+ {[%clk 0:00:07.3]} 52. Kf4 {[%clk
0:00:18.5]} 52... Rc3 {[%clk 0:00:07.9]} 53. h4 {[%clk 0:00:18]} 53... a2 {[%clk
0:00:07]} 54. Rxa2 {[%clk 0:00:15]} 54... Rc4+ {[%clk 0:00:07.2]} 55. Kg5 {[%clk
0:00:13.7]} 55... f6+ {[%clk 0:00:06.8]} 56. Kh5 {[%clk 0:00:12.9]} 56... Rc5+
{[%clk 0:00:07.2]} 57. Kg4 {[%clk 0:00:12.3]} 57... Rxc7 {[%clk 0:00:07.1]} 58.
Ra8 {[%clk 0:00:11.6]} 58... Rc4+ {[%clk 0:00:06.4]} 59. Kg3 {[%clk 0:00:11.8]}
59... Kf5 {[%clk 0:00:06.8]} 60. Rg8 {[%clk 0:00:10.5]} 60... Rc3+ {[%clk
0:00:06.4]} 61. Kg2 {[%clk 0:00:10.8]} 61... Rc4 {[%clk 0:00:06.7]} 62. Kg3
{[%clk 0:00:11]} 62... Rc3+ {[%clk 0:00:07.1]} 63. Kg2 {[%clk 0:00:11.3]} 63...
Rc4 {[%clk 0:00:07.6]} 64. Kg3 {[%clk 0:00:11.8]} 1/2-1/2

[Event "*** Titled Tuesday Blitz"]
[Site "Chess.com"]
[Date "2021.02.09"]
[Round "5"]
[White "capatl"]
[Black "floplover"]
[Result "1-0"]
[WhiteElo "2494"]
[BlackElo "2295"]
[TimeControl "180+1"]
[EndTime "10:58:28 PST"]
[Termination "capatl won on time"]

1. d4 {[%clk 0:03:00.9]} 1... d5 {[%clk 0:03:00]} 2. Nf3 {[%clk 0:03:01.8]} 2...
e6 {[%clk 0:03:00.9]} 3. c4 {[%clk 0:03:00.1]} 3... Nf6 {[%clk 0:03:01.2]} 4.
Nc3 {[%clk 0:03:00]} 4... Bb4 {[%clk 0:03:01.6]} 5. e3 {[%clk 0:02:57.4]} 5...
O-O {[%clk 0:01:59.5]} 6. a3 {[%clk 0:02:45.8]} 6... Bxc3+ {[%clk 0:01:58.3]} 7.
bxc3 {[%clk 0:02:46.7]} 7... c6 {[%clk 0:01:57.7]} 8. Qc2 {[%clk 0:02:45.8]}
8... b6 {[%clk 0:01:54.5]} 9. Bd3 {[%clk 0:02:44.4]} 9... Ba6 {[%clk 0:01:52.7]}
10. Nd2 {[%clk 0:02:43.2]} 10... Nbd7 {[%clk 0:01:46.1]} 11. O-O {[%clk
0:02:42.3]} 11... Qc8 {[%clk 0:01:42.7]} 12. Bb2 {[%clk 0:02:37.4]} 12... Qb7
{[%clk 0:01:42.4]} 13. Rac1 {[%clk 0:02:30.7]} 13... Rac8 {[%clk 0:01:41.6]} 14.
Rfd1 {[%clk 0:02:22.4]} 14... Rfe8 {[%clk 0:01:41.1]} 15. h3 {[%clk 0:01:56.8]}
15... c5 {[%clk 0:01:41.3]} 16. Qb3 {[%clk 0:01:49.9]} 16... e5 {[%clk
0:01:34.7]} 17. Bf1 {[%clk 0:01:42.7]} 17... cxd4 {[%clk 0:01:32.7]} 18. cxd4
{[%clk 0:01:43.1]} 18... exd4 {[%clk 0:01:31.4]} 19. Bxd4 {[%clk 0:01:42.5]}
19... Nc5 {[%clk 0:01:27]} 20. Qb2 {[%clk 0:01:33.9]} 20... Ncd7 {[%clk
0:01:04.9]} 21. cxd5 {[%clk 0:01:14]} 21... Bxf1 {[%clk 0:01:03.4]} 22. Rxf1
{[%clk 0:01:14.9]} 22... Qxd5 {[%clk 0:01:01.3]} 23. Nf3 {[%clk 0:01:10.9]}
23... Qb7 {[%clk 0:00:49.7]} 24. Rfd1 {[%clk 0:01:07.5]} 24... Rxc1 {[%clk
0:00:48.7]} 25. Rxc1 {[%clk 0:01:08.4]} 25... Rc8 {[%clk 0:00:49.4]} 26. Rd1
{[%clk 0:01:07.7]} 26... h6 {[%clk 0:00:45.4]} 27. Qb3 {[%clk 0:00:55.7]} 27...
Qc6 {[%clk 0:00:38.5]} 28. Ne5 {[%clk 0:00:47.6]} 28... Nxe5 {[%clk 0:00:33.4]}
29. Bxe5 {[%clk 0:00:48.5]} 29... Ne4 {[%clk 0:00:30.3]} 30. Bd4 {[%clk
0:00:38.1]} 30... Qc2 {[%clk 0:00:22.3]} 31. Qxc2 {[%clk 0:00:37.4]} 31... Rxc2
{[%clk 0:00:23.2]} 32. f3 {[%clk 0:00:38.2]} 32... Ng3 {[%clk 0:00:19.3]} 33.
Be5 {[%clk 0:00:37.5]} 33... Nf5 {[%clk 0:00:17.3]} 34. Bd4 {[%clk 0:00:33.2]}
34... Ra2 {[%clk 0:00:16.1]} 35. Rd3 {[%clk 0:00:32.1]} 35... Nxd4 {[%clk
0:00:15.4]} 36. exd4 {[%clk 0:00:33]} 36... Kf8 {[%clk 0:00:15.7]} 37. d5 {[%clk
0:00:30.1]} 37... Ke7 {[%clk 0:00:16.2]} 38. Kh2 {[%clk 0:00:30.5]} 38... Kd6
{[%clk 0:00:16.3]} 39. Kg3 {[%clk 0:00:31]} 39... Rc2 {[%clk 0:00:16.3]} 40. Re3
{[%clk 0:00:28.7]} 40... Rc5 {[%clk 0:00:15.7]} 41. Kf4 {[%clk 0:00:28.4]} 41...
Rxd5 {[%clk 0:00:15.9]} 42. Re8 {[%clk 0:00:28.5]} 42... g6 {[%clk 0:00:14.1]}
43. g4 {[%clk 0:00:27.2]} 43... Ra5 {[%clk 0:00:13.6]} 44. Rd8+ {[%clk
0:00:25.5]} 44... Ke7 {[%clk 0:00:13.4]} 45. Rd3 {[%clk 0:00:26.4]} 45... h5
{[%clk 0:00:12.3]} 46. h4 {[%clk 0:00:25.1]} 46... Ra4+ {[%clk 0:00:11.2]} 47.
Kg5 {[%clk 0:00:21.9]} 47... Ra5+ {[%clk 0:00:10]} 48. Kh6 {[%clk 0:00:20.6]}
48... Re5 {[%clk 0:00:09.9]} 49. f4 {[%clk 0:00:19.3]} 49... Re4 {[%clk
0:00:07.5]} 50. gxh5 {[%clk 0:00:19.4]} 50... gxh5 {[%clk 0:00:07.1]} 51. Kg5
{[%clk 0:00:19.3]} 51... Ke6 {[%clk 0:00:04.6]} 52. f5+ {[%clk 0:00:19.1]} 52...
Ke5 {[%clk 0:00:04.9]} 53. Kxh5 {[%clk 0:00:19.3]} 53... Kxf5 {[%clk 0:00:04.6]}
54. Rd7 {[%clk 0:00:20.2]} 54... Ra4 {[%clk 0:00:01.2]} 55. Rxf7+ {[%clk
0:00:20.3]} 55... Ke6 {[%clk 0:00:01.7]} 56. Rf3 {[%clk 0:00:20.3]} 56... b5
{[%clk 0:00:01.9]} 57. Kg5 {[%clk 0:00:20.2]} 57... a5 {[%clk 0:00:01.8]} 58. h5
{[%clk 0:00:20.2]} 58... b4 {[%clk 0:00:02.7]} 59. axb4 {[%clk 0:00:19.4]} 59...
axb4 {[%clk 0:00:02.2]} 60. h6 {[%clk 0:00:20.3]} 60... Ra1 {[%clk 0:00:01.2]}
61. Rh3 {[%clk 0:00:19.1]} 1-0

[Event "*** Titled Tuesday Blitz"]
[Site "Chess.com"]
[Date "2021.02.09"]
[Round "5"]
[White "FGHSMN"]
[Black "chescomhuynya"]
[Result "0-1"]
[WhiteElo "2617"]
[BlackElo "2492"]
[TimeControl "180+1"]
[EndTime "10:58:29 PST"]
[Termination "chescomhuynya won on time"]

1. e4 {[%clk 0:03:00.9]} 1... c5 {[%clk 0:02:58.7]} 2. Nf3 {[%clk 0:03:00.4]}
2... d6 {[%clk 0:02:58.8]} 3. d4 {[%clk 0:03:00.8]} 3... cxd4 {[%clk 0:02:59.7]}
4. Nxd4 {[%clk 0:03:01.3]} 4... Nf6 {[%clk 0:03:00.3]} 5. Nc3 {[%clk 0:03:01.8]}
5... a6 {[%clk 0:03:01]} 6. h3 {[%clk 0:03:02.3]} 6... e5 {[%clk 0:03:01]} 7.
Nb3 {[%clk 0:03:02.3]} 7... Be6 {[%clk 0:02:58.5]} 8. f4 {[%clk 0:03:01.9]} 8...
g6 {[%clk 0:02:58.4]} 9. Qf3 {[%clk 0:03:00.9]} 9... Nc6 {[%clk 0:02:49.1]} 10.
f5 {[%clk 0:03:00]} 10... gxf5 {[%clk 0:02:49.2]} 11. exf5 {[%clk 0:02:55.9]}
11... Bxb3 {[%clk 0:02:49.4]} 12. axb3 {[%clk 0:02:56.8]} 12... Nd4 {[%clk
0:02:42.2]} 13. Qf2 {[%clk 0:02:55.9]} 13... Rc8 {[%clk 0:02:29.8]} 14. Be3
{[%clk 0:02:45.1]} 14... Ne4 {[%clk 0:02:12.1]} 15. Nxe4 {[%clk 0:01:26.9]}
15... Nxc2+ {[%clk 0:02:11.8]} 16. Kd1 {[%clk 0:01:20.3]} 16... Nxa1 {[%clk
0:02:12.1]} 17. Bb6 {[%clk 0:01:00.3]} 17... Qe7 {[%clk 0:01:53.3]} 18. Bc4
{[%clk 0:00:47.6]} 18... d5 {[%clk 0:01:27.1]} 19. Bxd5 {[%clk 0:00:36.9]} 19...
Nc2 {[%clk 0:01:25.3]} 20. f6 {[%clk 0:00:23.4]} 20... Qd7 {[%clk 0:01:21.5]}
21. Qd2 {[%clk 0:00:19.7]} 21... Bb4 {[%clk 0:00:56.1]} 22. Qd3 {[%clk
0:00:18.3]} 22... Rg8 {[%clk 0:00:41.5]} 23. g4 {[%clk 0:00:16]} 23... h5 {[%clk
0:00:25.3]} 24. g5 {[%clk 0:00:14.7]} 24... Nd4 {[%clk 0:00:21.7]} 25. Bc4
{[%clk 0:00:13.6]} 25... Ne6 {[%clk 0:00:17.5]} 26. Qxd7+ {[%clk 0:00:08.9]}
26... Kxd7 {[%clk 0:00:18.4]} 27. h4 {[%clk 0:00:08.7]} 27... Rc6 {[%clk
0:00:12.1]} 28. Be3 {[%clk 0:00:07.4]} 28... b5 {[%clk 0:00:12.2]} 29. Bd5
{[%clk 0:00:07.5]} 29... Rc7 {[%clk 0:00:12.4]} 30. Ke2 {[%clk 0:00:06.8]} 30...
Rc2+ {[%clk 0:00:10.9]} 31. Kd3 {[%clk 0:00:07]} 31... Rgc8 {[%clk 0:00:09.7]}
32. Rg1 {[%clk 0:00:07.7]} 32... Rxb2 {[%clk 0:00:09]} 33. g6 {[%clk 0:00:07.1]}
33... fxg6 {[%clk 0:00:08.8]} 34. Rxg6 {[%clk 0:00:08]} 34... Nf4+ {[%clk
0:00:06.4]} 35. Bxf4 {[%clk 0:00:06.8]} 35... exf4 {[%clk 0:00:06]} 36. f7
{[%clk 0:00:07.1]} 36... Rf8 {[%clk 0:00:02.2]} 37. Nf6+ {[%clk 0:00:06.2]}
37... Ke7 {[%clk 0:00:02.3]} 38. Nh7 {[%clk 0:00:04.5]} 38... Rxf7 {[%clk
0:00:02.6]} 39. Bxf7 {[%clk 0:00:04.7]} 39... Kxf7 {[%clk 0:00:03.5]} 40. Rxa6
{[%clk 0:00:05.2]} 40... Rxb3+ {[%clk 0:00:03.9]} 41. Ke4 {[%clk 0:00:05.9]}
41... f3 {[%clk 0:00:03.9]} 42. Ng5+ {[%clk 0:00:06]} 42... Ke7 {[%clk
0:00:03.8]} 43. Nxf3 {[%clk 0:00:06.7]} 43... Bd6 {[%clk 0:00:03.9]} 44. Ng5
{[%clk 0:00:06.1]} 44... Kd7 {[%clk 0:00:03.6]} 45. Ra7+ {[%clk 0:00:05.7]}
45... Kc6 {[%clk 0:00:04]} 46. Rh7 {[%clk 0:00:06.3]} 46... b4 {[%clk
0:00:04.2]} 47. Rxh5 {[%clk 0:00:06.9]} 47... Rb1 {[%clk 0:00:04.9]} 48. Nf7
{[%clk 0:00:06.2]} 48... Be7 {[%clk 0:00:04.3]} 49. Rh6+ {[%clk 0:00:05.9]}
49... Kd7 {[%clk 0:00:04.6]} 50. Ne5+ {[%clk 0:00:06.1]} 50... Kc7 {[%clk
0:00:05.3]} 51. h5 {[%clk 0:00:06.4]} 51... b3 {[%clk 0:00:05.4]} 52. Rc6+
{[%clk 0:00:06.7]} 52... Kb7 {[%clk 0:00:05.5]} 53. Rc3 {[%clk 0:00:05.1]} 53...
b2 {[%clk 0:00:05.4]} 54. Rb3+ {[%clk 0:00:03.6]} 54... Kc7 {[%clk 0:00:05.2]}
55. Nf3 {[%clk 0:00:03.2]} 55... Bf6 {[%clk 0:00:03.6]} 56. Kf5 {[%clk
0:00:01.7]} 56... Bh8 {[%clk 0:00:02.1]} 0-1